Workbook

Sheet Bill 1
A1: PRELIMINARY AND GENERAL - For New Proposed Office, New Toilet And Reception Face Improvement
A2: FIXED CHARGE ITEMS
A3: A | B3: Sub Title | C3: DESCRIPTION | D3: Unit | E3: QTY | F3: Rate | G3: AMOUNT
A5: A.1 | B5: Site Establishment: | C5: The Contractor shall establish the site camp and maintain throughout the construction period and allow for removal of such upon completion of Works.
A6: A.1.1 | C6: Office and Meeting Room complete as per P&G's Guideline | D6: sum | E6: 1 | G6: =E6*F6 -> 0
A7: A.1.3. | C7: Sanitation | D7: sum | E7: 1 | G7: =E7*F7 -> 0
A8: A.1.4. | C8: Electricity | D8: sum | E8: 1 | G8: 0
A9: A.2. | B9: Sign Board Labour
A10: A.2.1 | C10: Construction Signboard | D10: sum | E10: 1 | G10: 0
A11: A.4. | B11: Health and Safety measures | C11: Safety & Health, Environmental | D11: sum | E11: 1 | G11: 0
A12: A.4.1 | C12: Compliance with OH&S Act & Construction Regulations. | D12: sum | E12: 1 | G12: 0
A13: A.8. | B13: Contractual requirements | C13: Comply ,maintain all insurance and statutory contributions, etc. | D13: sum | E13: 1 | G13: 0
A14: A.8.1 | C14: Allowance to Comply ,maintain all insurance and statutory contributions, etc. ( This lump sum shall be divided and paid in accordance to the number of months allocated to the project) | D14: sum | E14: 1 | G14: =E14*F14 -> 0
D15: Sub - Total 01 P & G Fixed Charge Items | G15: =SUM(G5:G14) -> 0
A17: TIME RELATED ITEMS
A19: B.
A20: B.1 | B20: Site Establishment:
A21: B.1.1. | C21: Maintain Site Office and Meeting Room complete as per P&G's guideline | D21: Month | E21: 3 | G21: =E21*F21 -> 0
A22: B.1.3. | C22: Water | D22: Month | E22: 3 | G22: =E22*F22 -> 0
A23: B.1.4. | C23: Sanitation (service) | D23: Month | E23: 3 | G23: 0
A24: B.1.5. | C24: Electricity | D24: Month | E24: 3 | G24: 0
A26: B.3 | B26: Security
A27: B.3.1. | C27: Security on site | D27: Month | E27: 3 | G27: 0
A28: B.5. | B28: Supervision
A29: B.5.1. | C29: Supervision of the works | D29: Month | E29: 3 | G29: 0
A30: B.6.
A31: B.6.1. | C31: Community Liason Officer | D31: Month | E31: 3 | G31: 0
A33: B.6.2. | C33: Environmental Officer | D33: Month | E33: 3 | G33: 0
A35: B.6.3. | C35: Quality Controller | D35: Month | E35: 3 | G35: 0
A37: B.6.4. | C37: Saftey Officer | D37: Month | E37: 3 | G37: 0
D38: Sub Total 02 - P&G Time Related Items | G38: =SUM(G21:G37) -> 0
D39: Total - P & G's | G39: =G15+G38 -> 0

Sheet Bill 2
A1: BILL NO. 2 - For Proposed New Office Hall at Rand Water Central Depot
A3: ITEM NO. | B3: DESCRIPTION | C3: UNIT | D3: QTY | E3: RATE | F3: TOTAL PRICE (SA RANDS)
A5: 1 | B5: Submission of Necessary Documentation
A7: 1.1 | B7: Safety file, medicals and Induction | C7: sum | D7: 1 | F7: =D7*E7 -> R 0.00
A8: 1.2 | B8: Installation of safety barricades around the working area | C8: sum | D8: 1 | F8: =D8*E8 -> R 0.00
A10: 2 | B10: Preparation of the Construction Area
A12: 2.1 | B12: Demolish all internal partioning structures and cart away to dumpsite | C12: sum | D12: 1 | F12: =D12*E12 -> R 0.00
A13: 2.2 | B13: Demolish and cart away existing floor tiles and skirting strips | C13: m2 | D13: =3.04*11.8 -> 36 | F13: =D13*E13 -> R 0.00
A15: 3 | B15: Construction of the New Wall
A17: 3.1 | B17: Mark, set and build up a 230 x 3040 x 11800 concrete brick partioning wall | C17: m2 | D17: =3.04*11.8 -> 36 | F17: =D17*E17 -> R 0.00
A18: 3.2 | B18: Apply a 25mm thick of building cement & sand plaster to both surfaces | C18: m2 | D18: =3.04*11.8*2 -> 72 | F18: =D18*E18 -> R 0.00
A20: 4 | B20: Painting the New Built and Plastered Wall
A22: 4.1 | B22: Prepare surface and apply primer paint to both surfaces | C22: m2 | D22: 140 | F22: =D22*E22 -> R 0.00
A23: 4.2 | B23: Apply 1st coat of the proposed paint to both surfaces | C23: m2 | D23: 140 | F23: =D23*E23 -> R 0.00
A24: 4.3 | B24: Apply 2nd coat of the proposed paint to both surfaces | C24: m2 | D24: 140 | F24: R 0.00
A26: 5 | B26: Installation of the Double Sliding Door
A28: 5.1 | B28: Set, mark on the existing wall for installation of the double sliding door thereafter demolish and cart away the rubbles to dumpsite | C28: m2 | D28: =3*2.2 -> 7 | F28: =D28*E28 -> R 0.00
A29: 5.2 | B29: Supply and Installation of a precast concrete lintel over the double sliding door | C29: sum | D29: 1 | F29: =D29*E29 -> R 0.00
A30: 5.3 | B30: Supply and Installation of double sliding door frame and glass sliding shutters | C30: sum | D30: 1 | F30: R 0.00
A32: 6 | B32: Installation of New Floor Tiles
A34: 6.1 | B34: Clean up and scrub away all protruding objects and make a smooth surface ready to receive new floor tiles | C34: sum | D34: 1 | F34: =D34*E34 -> R 0.00
A35: 6.2 | B35: Supply, mark, set up and instal new floor tiles to cover the area of 5600 x 11800 | C35: m2 | D35: =5.6*11.8 -> 66 | F35: R 0.00
A37: 7 | B37: Provisional of the Canopy/Verrandah over the entrance double sliding door
A39: 7.1 | B39: Supply materials and install a canopy/verrandah over the main entrance to the office | C39: sum | D39: 1 | F39: =D39*E39 -> R 0.00
A41: 8 | B41: Provisional of steps at the Main entrance
A43: 8.1 | B43: Supply all materials and build steps at the main entrance to the office | C43: sum | D43: 1 | F43: =D43*E43 -> R 0.00
A45: 9 | B45: Miacellaneous
A47: 9.1 | B47: Electrical works, such as more sockets, lights, etc. | C47: sum | D47: 1 | F47: =D47*E47 -> R 0.00
A48: 9.2 | B48: Provide for scaffolding and working platform | C48: sum | D48: 1 | F48: =D48*E48 -> R 0.00
A50: 2.2
B51: Diamond Mesh Gate (6 meter) | C51: No. | D51: 1.00 | F51: =D51*E51 -> R 0.00
A52: 2.3
B53: Supply and install Diamond mash fencing complete with corner posts and fence posts | C53: m | D53: 251.00 | F53: =D53*E53 -> R 0.00
A54: 3
C55: Sub-Total: Proposed New Office Hall at BWD | F55: =SUM(F5:F54) -> R 0.00

Sheet BILL 3
A1: BILL NO. 3 - A Proposed New Toilet At Central Depot Reception | M1: TO CONVERT STORAGE INTO TOILET
A3: ITEM NO. | B3: DESCRIPTION | C3: UNIT | D3: QTY | E3: RATE | F3: TOTAL PRICE (SA RANDS)
M4: SN | N4: Description | S4: Unit | T4: Qty | U4: Rate | V4: Amount
A5: 1 | B5: Demolition and Preparation Works
A7: 1.1 | B7: Demolishing, clearing and spoil | C7: sum | D7: 1 | F7: =D7*E7 -> 0
A8: 1.2 | B8: Rerouting existing plumbing work | C8: sum | D8: 1 | F8: =D8*E8 -> 0 | M8: 1 | N8: Demolition and Preparatio
A9: 1.3 | B9: Electric wiring (lighting. And Fan) | C9: sum | D9: 1 | F9: =D9*E9 -> 0
A10: 1.4 | B10: Waste Removal | C10: sum | D10: 1 | F10: =D10*E10 -> 0
A12: 2 | B12: Construction of a Front Wall | M12: 1.1 | N12: Demolition and clearance | S12: sum | T12: 1 | U12: R3,000.00 | V12: =T12*U12 -> R3,000.00
A14: 2.1 | B14: Removal of the existing floor material within the construction area and spoil | C14: m2 | D14: 19 | F14: =D14*E14 -> 0 | M14: 1.2 | N14: Plumbing rerouting | S14: sum | T14: 1 | U14: R3,000.00 | V14: =T14*U14 -> R3,000.00
A15: 2.2 | B15: Extend the existing front wall to the full height to above ceiling board level | C15: m2 | D15: 10 | F15: =D15*E15 -> 0
A17: 3 | B17: Plumbing and Installation of Fixtures and Fittings
M18: 1.3 | N18: Electric wiring (lights, fan) | S18: sum | T18: 1 | U18: R3,000.00 | V18: R3,000.00
A19: 3.1 | B19: Installation of WC, plumbing and all civil, mechanical fixtures & fittings see attached list of fixtures and fittings. | C19: sum | D19: 1 | F19: =D19*E19 -> 0
A21: 4 | B21: Installation of Drainage Piping System
A23: 4.1 | B23: Breaking concrete floor tiles 700mm trench width | C23: m2 | D23: 12 | F23: =D23*E23 -> 0
A24: 4.2 | B24: Breaking concrete slab and foundation wall at 700mm width | C24: m2 | D24: 23 | F24: 0
A25: 4.3 | B25: Settingout and excavate a trench for uPVC pipeline. The depth of the trench is from 0.5m to 3.5m to invert level, nature of the ground is moderate hard soil | C25: m | D25: 25 | F25: 0
A26: 4.4 | B26: Settingout, excavate and build inspection manhole | C26: no | D26: 1 | F26: 0
A27: 4.5 | B27: Supply and lay 110mm uPVC pipe at 25m length | C27: m | D27: 25 | F27: 0
A28: 4.'6 | B28: Allow for connection accessories to the piping system | C28: sum | D28: 1 | F28: 0
A29: 4.7 | B29: Backfilling and compacting trench | C29: m | D29: 25 | F29: 0
A30: 4.8 | B30: Reinstatement of concrete floor tiles + walls + paving | C30: m2 | D30: 12 | F30: 0
M31: 1.4 | N31: Waste removal | S31: sum | T31: 1 | U31: R3,000.00 | V31: R3,000.00
A32: 4 | B32: Finshing works - Internal & External of Toilet | V32: =SUM(V12:V31) -> R12,000.00
M33: 2 | N33: Fixtures & Fittings
A34: 4.1 | B34: Supply and install materials for finishing work such as floor & wall tiles, ceiling (MR gypsum + LED lights or equivalent, painting (ceiling & doors) see attached finishing list | C34: sum | D34: 1 | F34: =D34*E34 -> 0
M35: 2.1 | N35: Disabled WC ( Raised Height) Geberit/Duravit | S35: no | T35: 1 | U35: R6,000.00 | V35: R6,000.00
A36: 5 | B36: Provisional of soundproofing to eliminate WC - water hammers
M37: 2.2 | N37: Concealed Cistern & flush plate- Geberit | S37: no | T37: 1 | U37: R3,000.00 | V37: R3,000.00
A38: 5.1 | B38: Supply and install sound bears or soundproofing materials for prevention of WC-water hammers noises, see attached list | C38: sum | D38: 1 | F38: =D38*E38 -> 0
M39: 2.3 | N39: Wash basin (Well- mounted) Ceramic with chrome mixer | S39: no | T39: 1 | U39: R800.00 | V39: R800.00
C40: Sub-Total: Proposed New Office Hall at BWD | F40: =SUM(F7:F39) -> R 0.00
M41: 4.1 | N41: Rockwood or knauf | S41: m2 | T41: 8 | U41: R180.00 | V41: R1,440.00
M43: 4.2 | N43: Acoustic gypsum boards | S43: m2 | T43: 8 | U43: R280.00 | V43: R2,240.00
M45: 4.5 | N45: Acoustic door (solid core + seal kit) | S45: no | T45: 1 | U45: R6,000.00 | V45: R6,000.00
V46: =SUM(V41:V45) -> R9,680.00
N48: Drainage system - Option 01
M50: 5 | N50: Installation of Drainage Pipe System from the Proposed Toilet to the point of Connection 25m
M52: 5.1 | N52: Breaking concrete floor tiles at 700mm trench width | S52: m2 | T52: 12 | U52: R780.00 | V52: =T52*U52 -> R9,360.00
M54: 5.2 | N54: Breaking concrete slab and foundation wall at 700mm trench width. | S54: m2 | T54: 23 | U54: R625.00 | V54: =T54*U54 -> R14,375.00
M56: 5.3 | N56: Settingout and excavate a trench for uPVC pipeline. The depth is from 0.5 - 3.5m to the invert levels, and moderate through hard soil. | S56: m | T56: 25 | U56: R950.00 | V56: R23,750.00
M58: 5.4 | N58: Settingout, excavate and build inspection manhole | S58: no | T58: 1 | U58: R7,500.00 | V58: R7,500.00
M60: 5.5 | N60: Supply and lay 110mm uPVC pipe at 25m length | S60: m | T60: 25 | U60: R475.00 | V60: R11,875.00
M62: 5.6 | N62: Allow for connection accessories to the pipe | S62: sum | T62: 1 | U62: R6,000.00 | V62: R6,000.00
M64: 5.7 | N64: Backfilling and compacting trench | S64: m | T64: 25 | U64: R265.00 | V64: R6,625.00
M66: 5.8 | N66: Reinstatement of floor tiles+ walls + Paving | S66: m2 | T66: 12 | U66: R545.00 | V66: R6,540.00
V68: =SUM(V52:V67) -> R86,025.00
N70: Renovation of the Reception Room/Launch
N72: The scope involves the complete renovation of the main entrance reception area to achieve a high-standard, modern, and professional aesthetic. The renovation work will focus on removing outdated interior finishes and replacing them with premium-quality materials to align with a world-class corporate image.
M74: 6 | N74: Demolition, Removal and spoil of Face brick
M76: 6.1 | N76: Demolition, removal & spoil of face brick along the length of the wall of 30m and the height of 2.8m | S76: m2 | T76: 84 | U76: R115.00 | V76: =T76*U76 -> R9,660.00
M78: 6.2 | N78: Prepare surface wall by trimming for surface replacement 30m length and 2.8m height | S78: m2 | T78: 84 | U78: R65.00 | V78: =T78*U78 -> R5,460.00
M80: 6.3 | N80: Supply, install & skim plastering on the 30m length and 2.8m wall | S80: m2 | T80: 84 | U80: R495.00 | V80: =T80*U80 -> R41,580.00
M82: 6.4 | N82: Supply premium paint and apply to the plastered wall | S82: m2 | T82: 84 | U82: R312.00 | V82: =T82*U82 -> R26,208.00
M84: 6.5 | N84: Supply and application of accent panels | S84: m2 | T84: 84 | U84: R1,450.00 | V84: =T84*U84 -> R121,800.00
M86: 7 | N86: Refurbmishement of the floor
M88: 7.1 | N88: Removal of the existing floor material and dispose | S88: m2 | T88: 150 | U88: R75.00 | V88: =T88*U88 -> R11,250.00
M90: 7.2 | N90: Supply and install porcelain tiles | S90: m2 | T90: 150 | U90: R825.00 | V90: =T90*U90 -> R123,750.00
M92: 7.3 | N92: Supply and install skirting | S92: m | T92: 30 | U92: R175.00 | V92: =T92*U92 -> R5,250.00
M94: 8 | N94: Reception Desk
M96: 8.1 | N96: Refurbshment of the reception desk to meet highest standard class structure | S96: sum | T96: 1 | U96: R75,000.00 | V96: =T96*U96 -> R75,000.00
V97: =SUM(V76:V96) -> R419,958.00

Sheet BILL 4
A1: BILL NO. 4: Renovation of Reception Room/Hall and Reception Front Counter
A3: ITEM NO. | B3: DESCRIPTION | C3: UNIT | D3: QTY | E3: RATE | F3: TOTAL PRICE (SA RANDS)
B5: Renovation of BWD Reception Room/Hall and Front Desk Counter
A7: 1 | B7: Removal of existing facebricks from the surrounding walls
A9: 1.1 | B9: Remove the existing facebricks and other materials not needed and cart away | C9: m2 | D9: 100 | F9: =D9*E9 -> 0
A10: 1.2 | B10: Trim the area where the facebricks been removed to the required level | C10: m2 | D10: 100 | F10: =D10*E10 -> 0
A11: 1.3 | B11: Supply, install and skim plastering to 30m length of wall and at the 2.8m height | C11: m2 | D11: 100 | F11: =D11*E11 -> 0
A12: 1.4 | B12: Supply high quality premium paint and paint the plastered wall | C12: m2 | D12: 100 | F12: =D12*E12 -> 0
A13: 1.5 | B13: Apply accent panels the wall behind the Receptionist 2.8m height and 5m length | C13: m2 | D13: 15 | F13: =D13*E13 -> 0
C14: Sub-Total Wall Finishing Improvement | F14: =SUM(F9:F13) -> 0
A16: 2 | B16: Floor Improvement to Reception Hall
A18: 2.1 | B18: Remove and dispose the existing floor material | C18: m2 | D18: 150 | F18: =D18*E18 -> 0
A19: 2.2 | B19: Prepare and trim the floor to required level (Floor area where the existing materials removed | C19: m2 | D19: 150 | F19: =D19*E19 -> 0
A20: 2.3 | B20: Supply and install porcelain tile materials on the trimmed and leveled floor | C20: m2 | D20: 150 | F20: =D20*E20 -> 0
A21: 2.4 | B21: Supply, install and polish skirting trip for 30m | C21: m | D21: 30 | F21: =D21*E21 -> 0
A22: 2.5 | B22: Fubricate, supply, deliver and install a corporate high quality reception front desk | C22: sum | D22: 1 | F22: =D22*E22 -> 0
C23: Sub-Total Reception Floor Improvement | F23: =SUM(F18:F22) -> 0
C24: Total - Improvement of BWD Reception | F24: =F14+F23 -> 0

Sheet Summary 1
A1: SUMMARY OF BILLS OF QUANTITIES - Proposed New Office Hall, New Toilet at the Reception and Improvement of the Look of the Reception Hall at BWD, RW Central Depot.
A3: Page No | B3: Description | C3: Amount
A5: 1 | B5: Bill No. 1 - Preliminary and General | C5: ='Bill 1'!G39 -> 0
A6: 2 | B6: Bill No. 2 - Construction of New Office Hall | C6: ='Bill 2'!F55 -> 0
A7: 3 | B7: Bill No. 3 - Construction of Reception Toilet | C7: ='BILL 3'!F40 -> 0
A8: 4 | B8: Bill No, 4 - Renovation of the Reception Room | C8: ='BILL 4'!F24 -> 0
A10: Total Amount | C10: =C5+C6+C7+C8 -> 0
A11: VAT (15%) | C11: =C10*0.15 -> 0
A12: Gross Total (Inclusive) | C12: =C10+C11 -> 0
